[Event "Titled Tuesday Blitz January 10 Early 2023"]
[White "Guimaraes, Wagner Peixoto"]
[Black "Guevara Sanchez, Erick Marvin"]
[WhiteFideId "2100940"]
[BlackFideId "6700136"]
[WhiteElo "2194"]
[BlackElo "2073"]
[Result "1/2-1/2"]
[Round "06"]
[TimeControl "180+2"]
[Date "2023.01.10"]
[WhiteClock "0:00:14"]
[BlackClock "0:00:28"]

1. e4 {[%clk 0:02:51]}  c5 {[%clk 0:03:00]} 2. Nc3 {[%clk 0:02:47]}  Nc6 {[%clk 0:02:57]} 3. g3 {[%clk 0:02:44]}  g6 {[%clk 0:02:57]} 4. Bg2 {[%clk 0:02:44]}  Bg7 {[%clk 0:02:58]} 5. d3 {[%clk 0:02:45]}  e6 {[%clk 0:02:57]} 6. Be3 {[%clk 0:02:45]}  b6 {[%clk 0:02:54]} 7. h4 {[%clk 0:02:41]}  h5 {[%clk 0:02:49]} 8. Qd2 {[%clk 0:02:41]}  Nge7 {[%clk 0:02:47]} 9. Nh3 {[%clk 0:02:38]}  O-O {[%clk 0:02:44]} 10. Bh6 {[%clk 0:02:34]}  Bb7 {[%clk 0:02:40]} 11. Bxg7 {[%clk 0:02:33]}  Kxg7 {[%clk 0:02:41]} 12. O-O-O {[%clk 0:02:28]}  d5 {[%clk 0:02:34]} 13. exd5 {[%clk 0:02:25]}  exd5 {[%clk 0:02:34]} 14. Nf4 {[%clk 0:02:23]}  d4 {[%clk 0:02:32]} 15. Ne4 {[%clk 0:02:22]}  Nd5 {[%clk 0:02:30]} 16. Ng5 {[%clk 0:02:16]}  Nxf4 {[%clk 0:02:26]} 17. Qxf4 {[%clk 0:02:17]}  Qf6 {[%clk 0:02:21]} 18. Qxf6+ {[%clk 0:02:12]}  Kxf6 {[%clk 0:02:22]} 19. Nh7+ {[%clk 0:02:12]}  Kg7 {[%clk 0:02:21]} 20. Nxf8 {[%clk 0:02:13]}  Kxf8 {[%clk 0:02:21]} 21. Rhe1 {[%clk 0:02:10]}  Rb8 {[%clk 0:02:20]} 22. a3 {[%clk 0:02:10]}  Ne7 {[%clk 0:02:16]} 23. Bxb7 {[%clk 0:02:09]}  Rxb7 {[%clk 0:02:17]} 24. Re5 {[%clk 0:02:09]}  Nc6 {[%clk 0:02:16]} 25. Rd5 {[%clk 0:02:07]}  Kg7 {[%clk 0:02:08]} 26. Re1 {[%clk 0:02:06]}  Ne7 {[%clk 0:02:06]} 27. Rde5 {[%clk 0:02:01]}  Nc6 {[%clk 0:02:03]} 28. R5e4 {[%clk 0:02:01]}  Kf6 {[%clk 0:02:00]} 29. Kd2 {[%clk 0:01:58]}  Kg7 {[%clk 0:01:47]} 30. f4 {[%clk 0:01:47]}  Kf8 {[%clk 0:01:44]} 31. Re8+ {[%clk 0:01:44]}  Kg7 {[%clk 0:01:43]} 32. Rc8 {[%clk 0:01:45]}  Ne7 {[%clk 0:01:42]} 33. Re8 {[%clk 0:01:36]}  Nf5 {[%clk 0:01:41]} 34. Rg1 {[%clk 0:01:37]}  Kf6 {[%clk 0:01:39]} 35. c3 {[%clk 0:01:33]}  Rd7 {[%clk 0:01:37]} 36. c4 {[%clk 0:01:32]}  Nd6 {[%clk 0:01:32]} 37. Re5 {[%clk 0:01:27]}  Nf5 {[%clk 0:01:30]} 38. b3 {[%clk 0:01:23]}  Rc7 {[%clk 0:01:21]} 39. a4 {[%clk 0:01:23]}  a5 {[%clk 0:01:20]} 40. Ke2 {[%clk 0:01:16]}  Rd7 {[%clk 0:01:14]} 41. Kf3 {[%clk 0:01:16]}  Ne3 {[%clk 0:01:12]} 42. Rxe3 {[%clk 0:01:13]}  dxe3 {[%clk 0:01:11]} 43. Kxe3 {[%clk 0:01:14]}  Kf5 {[%clk 0:01:11]} 44. Rf1 {[%clk 0:01:06]}  Kg4 {[%clk 0:01:10]} 45. f5 {[%clk 0:00:55]}  Kxg3 {[%clk 0:01:08]} 46. fxg6 {[%clk 0:00:53]}  fxg6 {[%clk 0:01:05]} 47. Rf6 {[%clk 0:00:53]}  Re7+ {[%clk 0:01:04]} 48. Kd2 {[%clk 0:00:52]}  Kxh4 {[%clk 0:01:03]} 49. Rxg6 {[%clk 0:00:52]}  Rb7 {[%clk 0:01:01]} 50. Kc3 {[%clk 0:00:46]}  Kh3 {[%clk 0:01:00]} 51. d4 {[%clk 0:00:47]}  cxd4+ {[%clk 0:00:59]} 52. Kxd4 {[%clk 0:00:48]}  h4 {[%clk 0:00:57]} 53. Kd5 {[%clk 0:00:39]}  Rd7+ {[%clk 0:00:54]} 54. Kc6 {[%clk 0:00:29]}  Rd3 {[%clk 0:00:53]} 55. Kxb6 {[%clk 0:00:28]}  Rxb3+ {[%clk 0:00:53]} 56. Kxa5 {[%clk 0:00:29]}  Kh2 {[%clk 0:00:50]} 57. Rh6 {[%clk 0:00:26]}  h3 {[%clk 0:00:48]} 58. c5 {[%clk 0:00:26]}  Kg2 {[%clk 0:00:46]} 59. c6 {[%clk 0:00:22]}  Rc3 {[%clk 0:00:33]} 60. Kb6 {[%clk 0:00:20]}  h2 {[%clk 0:00:32]} 61. Rxh2+ {[%clk 0:00:19]}  Kxh2 {[%clk 0:00:33]} 62. a5 {[%clk 0:00:18]}  Kg3 {[%clk 0:00:33]} 63. a6 {[%clk 0:00:19]}  Kf4 {[%clk 0:00:34]} 64. a7 {[%clk 0:00:19]}  Rb3+ {[%clk 0:00:34]} 65. Kc7 {[%clk 0:00:19]}  Ra3 {[%clk 0:00:34]} 66. Kb7 {[%clk 0:00:18]}  Rb3+ {[%clk 0:00:34]} 67. Ka8 {[%clk 0:00:18]}  Rc3 {[%clk 0:00:29]} 68. Kb8 {[%clk 0:00:16]}  Rb3+ {[%clk 0:00:29]} 69. Kc8 {[%clk 0:00:16]}  Ra3 {[%clk 0:00:30]} 70. Kb7 {[%clk 0:00:15]}  Rb3+ {[%clk 0:00:30]} 71. Kc8 {[%clk 0:00:14]}  Ra3 {[%clk 0:00:30]} 72. c7 {[%clk 0:00:12]}  Rxa7 {[%clk 0:00:28]} 73. Kb8 {[%clk 0:00:13]}  Rxc7 {[%clk 0:00:28]} 74. Kxc7 {[%clk 0:00:14]} 1/2-1/2


[Site "https://www.chess.com"]

[Event "Titled Tuesday Blitz January 10 Early 2023"]
[White "Simonovic, Miroslav"]
[Black "Pinero Rodriguez, Carlos Jose"]
[WhiteFideId "919152"]
[BlackFideId "3901726"]
[WhiteElo "2082"]
[BlackElo "2246"]
[Result "1-0"]
[Round "06"]
[TimeControl "180+2"]
[Date "2023.01.10"]
[WhiteClock "0:00:40"]
[BlackClock "0:00:21"]

1. d4 {[%clk 0:02:56]}  Nf6 {[%clk 0:02:58]} 2. Bg5 {[%clk 0:02:57]}  Ne4 {[%clk 0:02:49]} 3. h4 {[%clk 0:02:56]}  Nxg5 {[%clk 0:02:46]} 4. hxg5 {[%clk 0:02:57]}  e6 {[%clk 0:02:45]} 5. f4 {[%clk 0:02:56]}  c5 {[%clk 0:02:41]} 6. d5 {[%clk 0:02:44]}  e5 {[%clk 0:02:32]} 7. g3 {[%clk 0:02:34]}  d6 {[%clk 0:02:19]} 8. e3 {[%clk 0:02:27]}  a6 {[%clk 0:02:08]} 9. c4 {[%clk 0:02:26]}  Bd7 {[%clk 0:01:58]} 10. Nc3 {[%clk 0:02:23]}  b5 {[%clk 0:01:47]} 11. cxb5 {[%clk 0:02:22]}  axb5 {[%clk 0:01:47]} 12. Bxb5 {[%clk 0:02:23]}  Qa5 {[%clk 0:01:40]} 13. Bd3 {[%clk 0:02:17]}  Be7 {[%clk 0:01:36]} 14. Nf3 {[%clk 0:02:04]}  Bg4 {[%clk 0:01:31]} 15. Kf2 {[%clk 0:02:01]}  Nd7 {[%clk 0:01:21]} 16. Qc2 {[%clk 0:01:50]}  h5 {[%clk 0:01:14]} 17. gxh6 {[%clk 0:01:46]}  Rxh6 {[%clk 0:01:14]} 18. Rxh6 {[%clk 0:01:46]}  gxh6 {[%clk 0:01:15]} 19. Bf5 {[%clk 0:01:28]}  Nf6 {[%clk 0:01:05]} 20. fxe5 {[%clk 0:01:17]}  dxe5 {[%clk 0:01:01]} 21. Nxe5 {[%clk 0:01:11]}  Qb4 {[%clk 0:00:53]} 22. Bxg4 {[%clk 0:01:05]}  Nxg4+ {[%clk 0:00:52]} 23. Nxg4 {[%clk 0:01:06]}  Qxg4 {[%clk 0:00:53]} 24. Qe4 {[%clk 0:01:07]}  Qg5 {[%clk 0:00:28]} 25. d6 {[%clk 0:00:51]}  Qf6+ {[%clk 0:00:26]} 26. Kg2 {[%clk 0:00:51]}  Rb8 {[%clk 0:00:25]} 27. Qxe7+ {[%clk 0:00:48]}  Qxe7 {[%clk 0:00:25]} 28. dxe7 {[%clk 0:00:49]}  Rxb2+ {[%clk 0:00:26]} 29. Kf3 {[%clk 0:00:49]}  Kxe7 {[%clk 0:00:25]} 30. a4 {[%clk 0:00:41]}  Rb7 {[%clk 0:00:21]} 31. a5 {[%clk 0:00:41]}  Ra7 {[%clk 0:00:21]} 32. a6 {[%clk 0:00:40]}  Kd6 {[%clk 0:00:21]} 33. Nb5+ {[%clk 0:00:40]} 1-0


[Site "https://www.chess.com"]

[Event "Titled Tuesday Blitz January 10 Early 2023"]
[White "Rosh Jain"]
[Black "Vaglio Munoz, Jaime"]
[WhiteFideId "25789465"]
[BlackFideId "6500145"]
[WhiteElo "2248"]
[BlackElo "2174"]
[Result "1-0"]
[Round "06"]
[TimeControl "180+2"]
[Date "2023.01.10"]
[WhiteClock "0:00:46"]
[BlackClock "0:01:41"]

1. e4 {[%clk 0:02:56]}  c5 {[%clk 0:02:57]} 2. Nf3 {[%clk 0:02:55]}  Qa5 {[%clk 0:02:57]} 3. Nc3 {[%clk 0:02:52]}  a6 {[%clk 0:02:57]} 4. d4 {[%clk 0:02:49]}  b5 {[%clk 0:02:56]} 5. dxc5 {[%clk 0:02:46]}  e6 {[%clk 0:02:56]} 6. Bd2 {[%clk 0:02:35]}  b4 {[%clk 0:02:57]} 7. Ne2 {[%clk 0:02:25]}  Bxc5 {[%clk 0:02:57]} 8. Nf4 {[%clk 0:02:09]}  Bb7 {[%clk 0:02:54]} 9. Nd3 {[%clk 0:02:05]}  Be7 {[%clk 0:02:52]} 10. a3 {[%clk 0:02:02]}  Bxe4 {[%clk 0:02:50]} 11. axb4 {[%clk 0:02:02]}  Qc7 {[%clk 0:02:46]} 12. Be2 {[%clk 0:01:58]}  Nf6 {[%clk 0:02:46]} 13. O-O {[%clk 0:01:57]}  O-O {[%clk 0:02:45]} 14. Bc3 {[%clk 0:01:57]}  d6 {[%clk 0:02:41]} 15. Nf4 {[%clk 0:01:51]}  Qb7 {[%clk 0:02:40]} 16. Nd2 {[%clk 0:01:32]}  Bc6 {[%clk 0:02:35]} 17. Nb3 {[%clk 0:01:29]}  Bb5 {[%clk 0:02:28]} 18. Bf3 {[%clk 0:01:25]}  d5 {[%clk 0:02:27]} 19. Re1 {[%clk 0:01:24]}  Ne4 {[%clk 0:02:19]} 20. Bxe4 {[%clk 0:01:19]}  dxe4 {[%clk 0:02:19]} 21. Qg4 {[%clk 0:01:17]}  g6 {[%clk 0:02:14]} 22. Nh5 {[%clk 0:01:04]}  f5 {[%clk 0:02:10]} 23. Qg3 {[%clk 0:01:03]}  Qc8 {[%clk 0:01:51]} 24. Qe5 {[%clk 0:00:57]}  Kf7 {[%clk 0:01:48]} 25. Qg7+ {[%clk 0:00:53]}  Ke8 {[%clk 0:01:48]} 26. Nf4 {[%clk 0:00:52]}  Rf7 {[%clk 0:01:47]} 27. Qg8+ {[%clk 0:00:50]}  Kd7 {[%clk 0:01:47]} 28. Qxf7 {[%clk 0:00:50]}  Bc4 {[%clk 0:01:46]} 29. Rad1+ {[%clk 0:00:47]}  Kc6 {[%clk 0:01:46]} 30. Qxe7 {[%clk 0:00:47]}  Nd7 {[%clk 0:01:43]} 31. Rd6+ {[%clk 0:00:46]}  Kb7 {[%clk 0:01:41]} 32. Rxd7+ {[%clk 0:00:45]}  Kb8 {[%clk 0:01:42]} 33. Qd6+ {[%clk 0:00:45]}  Qc7 {[%clk 0:01:41]} 34. Qxc7# {[%clk 0:00:46]} 1-0


[Site "https://www.chess.com"]

[Event "Titled Tuesday Blitz January 10 Early 2023"]
[White "Kovacevic, Radmila"]
[Black "Rosenberg, Evan S"]
[WhiteFideId "933171"]
[BlackFideId "2019299"]
[WhiteElo "2106"]
[BlackElo "1956"]
[Result "1-0"]
[Round "06"]
[TimeControl "180+2"]
[Date "2023.01.10"]
[WhiteClock "0:00:14"]
[BlackClock "0:00:14"]

1. e4 {[%clk 0:03:00]}  e5 {[%clk 0:02:59]} 2. d4 {[%clk 0:02:59]}  exd4 {[%clk 0:02:59]} 3. c3 {[%clk 0:02:59]}  Qe7 {[%clk 0:02:56]} 4. Qxd4 {[%clk 0:02:58]}  Nc6 {[%clk 0:02:53]} 5. Qe3 {[%clk 0:02:58]}  Nf6 {[%clk 0:02:49]} 6. Bd3 {[%clk 0:02:56]}  d5 {[%clk 0:02:48]} 7. Nd2 {[%clk 0:02:51]}  dxe4 {[%clk 0:02:37]} 8. Nxe4 {[%clk 0:02:44]}  Nd5 {[%clk 0:02:21]} 9. Qe2 {[%clk 0:02:39]}  Ne5 {[%clk 0:02:11]} 10. Bc2 {[%clk 0:02:38]}  Bg4 {[%clk 0:02:01]} 11. Qb5+ {[%clk 0:02:32]}  c6 {[%clk 0:02:01]} 12. Qa4 {[%clk 0:02:08]}  f5 {[%clk 0:01:52]} 13. Bg5 {[%clk 0:01:31]}  Qe6 {[%clk 0:01:52]} 14. f3 {[%clk 0:01:27]}  fxe4 {[%clk 0:01:37]} 15. fxg4 {[%clk 0:01:22]}  Nd3+ {[%clk 0:01:13]} 16. Bxd3 {[%clk 0:01:15]}  exd3+ {[%clk 0:01:13]} 17. Kd2 {[%clk 0:01:14]}  Be7 {[%clk 0:01:03]} 18. Bxe7 {[%clk 0:00:44]}  Qe3+ {[%clk 0:01:02]} 19. Kd1 {[%clk 0:00:43]}  Qxe7 {[%clk 0:00:44]} 20. Nf3 {[%clk 0:00:29]}  Qe2+ {[%clk 0:00:44]} 21. Kc1 {[%clk 0:00:30]}  O-O {[%clk 0:00:37]} 22. Qd1 {[%clk 0:00:20]}  Qxg2 {[%clk 0:00:23]} 23. Nh4 {[%clk 0:00:16]}  Qe2 {[%clk 0:00:16]} 24. Nf5 {[%clk 0:00:14]}  Ne3 {[%clk 0:00:09]} 25. Qxe2 {[%clk 0:00:14]}  dxe2 {[%clk 0:00:08]} 26. Nxe3 {[%clk 0:00:14]}  Rae8 {[%clk 0:00:09]} 27. Kd2 {[%clk 0:00:14]}  Rf2 {[%clk 0:00:06]} 28. Rae1 {[%clk 0:00:14]}  Rd8+ {[%clk 0:00:04]} 29. Kc1 {[%clk 0:00:14]}  Rd3 {[%clk 0:00:02]} 30. Nc2 {[%clk 0:00:13]}  g5 {[%clk 0:00:01]} 31. h4 {[%clk 0:00:13]}  gxh4 {[%clk 0:00:01]} 32. Rxh4 {[%clk 0:00:12]}  Rf1 {[%clk 0:00:02]} 33. Rh1 {[%clk 0:00:12]}  Rxh1 {[%clk 0:00:02]} 34. Rxh1 {[%clk 0:00:12]}  Rg3 {[%clk 0:00:01]} 35. Re1 {[%clk 0:00:13]}  Rxg4 {[%clk 0:00:01]} 36. Rxe2 {[%clk 0:00:13]}  h5 {[%clk 0:00:02]} 37. Kd2 {[%clk 0:00:14]}  h4 {[%clk 0:00:02]} 38. Ne3 {[%clk 0:00:13]}  Rg3 {[%clk 0:00:02]} 39. Nf5 {[%clk 0:00:12]}  Rh3 {[%clk 0:00:03]} 40. Rg2+ {[%clk 0:00:12]}  Kf8 {[%clk 0:00:03]} 41. b4 {[%clk 0:00:11]}  Rh1 {[%clk 0:00:03]} 42. Rg4 {[%clk 0:00:10]}  h3 {[%clk 0:00:03]} 43. Rh4 {[%clk 0:00:10]}  h2 {[%clk 0:00:03]} 44. Ne3 {[%clk 0:00:09]}  Ra1 {[%clk 0:00:03]} 45. Rxh2 {[%clk 0:00:07]}  Rxa2+ {[%clk 0:00:03]} 46. Nc2 {[%clk 0:00:08]}  a5 {[%clk 0:00:03]} 47. bxa5 {[%clk 0:00:07]}  Rxa5 {[%clk 0:00:03]} 48. Kd3 {[%clk 0:00:08]}  Rd5+ {[%clk 0:00:03]} 49. Kc4 {[%clk 0:00:08]}  b5+ {[%clk 0:00:03]} 50. Kb3 {[%clk 0:00:08]}  Rf5 {[%clk 0:00:03]} 51. Nd4 {[%clk 0:00:08]}  Rf6 {[%clk 0:00:04]} 52. Rh5 {[%clk 0:00:08]}  Ke7 {[%clk 0:00:03]} 53. Rc5 {[%clk 0:00:06]}  Kd7 {[%clk 0:00:02]} 54. Kb4 {[%clk 0:00:05]}  Kc7 {[%clk 0:00:01]} 55. Nxb5+ {[%clk 0:00:05]}  Kb6 {[%clk 0:00:02]} 56. Nd4 {[%clk 0:00:05]}  Rf1 {[%clk 0:00:01]} 57. Rxc6+ {[%clk 0:00:05]}  Kb7 {[%clk 0:00:01]} 58. Rh6 {[%clk 0:00:05]}  Rb1+ {[%clk 0:00:02]} 59. Kc4 {[%clk 0:00:06]}  Ra1 {[%clk 0:00:02]} 60. Nb5 {[%clk 0:00:05]}  Ra4+ {[%clk 0:00:02]} 61. Kb3 {[%clk 0:00:06]}  Rg4 {[%clk 0:00:03]} 62. c4 {[%clk 0:00:06]}  Rg3+ {[%clk 0:00:03]} 63. Kb4 {[%clk 0:00:06]}  Rg1 {[%clk 0:00:04]} 64. Kc5 {[%clk 0:00:06]}  Rg5+ {[%clk 0:00:05]} 65. Kb4 {[%clk 0:00:06]}  Rg4 {[%clk 0:00:05]} 66. Ka5 {[%clk 0:00:07]}  Rxc4 {[%clk 0:00:05]} 67. Nd6+ {[%clk 0:00:07]}  Kc6 {[%clk 0:00:05]} 68. Nxc4+ {[%clk 0:00:08]}  Kc5 {[%clk 0:00:06]} 69. Nb6 {[%clk 0:00:08]}  Kd4 {[%clk 0:00:05]} 70. Rh5 {[%clk 0:00:09]}  Ke4 {[%clk 0:00:05]} 71. Rd5 {[%clk 0:00:09]}  Kf4 {[%clk 0:00:04]} 72. Kb5 {[%clk 0:00:10]}  Ke4 {[%clk 0:00:05]} 73. Kc5 {[%clk 0:00:11]}  Kf4 {[%clk 0:00:05]} 74. Kd4 {[%clk 0:00:12]}  Kf3 {[%clk 0:00:06]} 75. Re5 {[%clk 0:00:12]}  Kf4 {[%clk 0:00:06]} 76. Nd5+ {[%clk 0:00:13]}  Kg4 {[%clk 0:00:06]} 77. Ke4 {[%clk 0:00:12]}  Kg3 {[%clk 0:00:06]} 78. Rf5 {[%clk 0:00:13]}  Kg2 {[%clk 0:00:07]} 79. Rf4 {[%clk 0:00:13]}  Kg1 {[%clk 0:00:07]} 80. Rf3 {[%clk 0:00:13]}  Kg2 {[%clk 0:00:08]} 81. Ke3 {[%clk 0:00:14]}  Kg1 {[%clk 0:00:09]} 82. Rf2 {[%clk 0:00:14]}  Kh1 {[%clk 0:00:10]} 83. Nf4 {[%clk 0:00:14]}  Kg1 {[%clk 0:00:11]} 84. Ne2+ {[%clk 0:00:13]}  Kh1 {[%clk 0:00:11]} 85. Ng3+ {[%clk 0:00:13]}  Kg1 {[%clk 0:00:12]} 86. Ne2+ {[%clk 0:00:13]}  Kh1 {[%clk 0:00:12]} 87. Nd4 {[%clk 0:00:12]}  Kg1 {[%clk 0:00:13]} 88. Kf3 {[%clk 0:00:13]}  Kh1 {[%clk 0:00:13]} 89. Kg3 {[%clk 0:00:13]}  Kg1 {[%clk 0:00:14]} 90. Nf3+ {[%clk 0:00:13]}  Kh1 {[%clk 0:00:14]} 91. Rf1# {[%clk 0:00:14]} 1-0


[Site "https://www.chess.com"]

[Event "Titled Tuesday Blitz January 10 Early 2023"]
[White "Tuleyeva-Aketayeva, Dana"]
[Black "Bove, Alessandro"]
[WhiteFideId "13701932"]
[BlackFideId "814121"]
[WhiteElo "2130"]
[BlackElo "2311"]
[Result "1/2-1/2"]
[Round "06"]
[TimeControl "180+2"]
[Date "2023.01.10"]
[WhiteClock "0:00:10"]
[BlackClock "0:01:24"]

1. d4 {[%clk 0:02:36]}  g6 {[%clk 0:03:00]} 2. Nf3 {[%clk 0:02:36]}  Bg7 {[%clk 0:03:00]} 3. g3 {[%clk 0:02:36]}  c5 {[%clk 0:03:00]} 4. c3 {[%clk 0:02:31]}  cxd4 {[%clk 0:03:00]} 5. cxd4 {[%clk 0:02:32]}  d6 {[%clk 0:03:01]} 6. Bg2 {[%clk 0:02:31]}  Nf6 {[%clk 0:03:01]} 7. O-O {[%clk 0:02:32]}  O-O {[%clk 0:03:02]} 8. Nc3 {[%clk 0:02:32]}  Nc6 {[%clk 0:03:03]} 9. e4 {[%clk 0:02:31]}  a6 {[%clk 0:03:01]} 10. h3 {[%clk 0:02:18]}  Bd7 {[%clk 0:03:00]} 11. e5 {[%clk 0:02:11]}  dxe5 {[%clk 0:03:00]} 12. Nxe5 {[%clk 0:02:00]}  Rc8 {[%clk 0:02:42]} 13. Nxd7 {[%clk 0:01:57]}  Qxd7 {[%clk 0:02:41]} 14. Be3 {[%clk 0:01:47]}  e6 {[%clk 0:02:39]} 15. Qe2 {[%clk 0:01:41]}  Rfd8 {[%clk 0:02:38]} 16. Rfd1 {[%clk 0:01:39]}  b5 {[%clk 0:02:32]} 17. a3 {[%clk 0:01:38]}  Na5 {[%clk 0:02:30]} 18. d5 {[%clk 0:00:52]}  exd5 {[%clk 0:02:22]} 19. Bb6 {[%clk 0:00:39]}  Nb3 {[%clk 0:02:17]} 20. Bxd8 {[%clk 0:00:39]}  Rxd8 {[%clk 0:02:01]} 21. Rab1 {[%clk 0:00:33]}  d4 {[%clk 0:02:01]} 22. Ne4 {[%clk 0:00:31]}  Nxe4 {[%clk 0:01:59]} 23. Qxe4 {[%clk 0:00:29]}  Nc5 {[%clk 0:01:53]} 24. Qc6 {[%clk 0:00:28]}  Qxc6 {[%clk 0:01:50]} 25. Bxc6 {[%clk 0:00:28]}  d3 {[%clk 0:01:46]} 26. Bg2 {[%clk 0:00:18]}  Na4 {[%clk 0:01:46]} 27. Rd2 {[%clk 0:00:16]}  Bxb2 {[%clk 0:01:34]} 28. Rbd1 {[%clk 0:00:15]}  Bxa3 {[%clk 0:01:30]} 29. Rxd3 {[%clk 0:00:14]}  Rxd3 {[%clk 0:01:29]} 30. Rxd3 {[%clk 0:00:15]}  Nc5 {[%clk 0:01:29]} 31. Rd8+ {[%clk 0:00:15]}  Kg7 {[%clk 0:01:26]} 32. Bf1 {[%clk 0:00:14]}  b4 {[%clk 0:01:24]} 33. Rb8 {[%clk 0:00:14]}  b3 {[%clk 0:01:24]} 34. Bc4 {[%clk 0:00:14]}  b2 {[%clk 0:01:23]} 35. Ba2 {[%clk 0:00:14]}  a5 {[%clk 0:01:23]} 36. Rb5 {[%clk 0:00:13]}  Bb4 {[%clk 0:01:23]} 37. Rb7 {[%clk 0:00:12]}  Na4 {[%clk 0:01:23]} 38. Rxf7+ {[%clk 0:00:12]}  Kh6 {[%clk 0:01:22]} 39. Rf3 {[%clk 0:00:11]}  Nc3 {[%clk 0:01:22]} 40. Rxc3 {[%clk 0:00:09]}  Bxc3 {[%clk 0:01:22]} 41. Kf1 {[%clk 0:00:10]}  Kg5 {[%clk 0:01:22]} 42. Ke2 {[%clk 0:00:09]}  h5 {[%clk 0:01:23]} 43. f3 {[%clk 0:00:08]}  Kf5 {[%clk 0:01:23]} 44. Bb1+ {[%clk 0:00:07]}  Kf6 {[%clk 0:01:23]} 45. Kd3 {[%clk 0:00:07]}  Be1 {[%clk 0:01:15]} 46. g4 {[%clk 0:00:05]}  hxg4 {[%clk 0:01:15]} 47. hxg4 {[%clk 0:00:03]}  Bg3 {[%clk 0:01:14]} 48. Ke4 {[%clk 0:00:03]}  g5 {[%clk 0:01:13]} 49. Kd3 {[%clk 0:00:01]}  Ke5 {[%clk 0:01:13]} 50. Kc2 {[%clk 0:00:02]}  Kf4 {[%clk 0:01:13]} 51. Kxb2 {[%clk 0:00:02]}  Kxf3 {[%clk 0:01:14]} 52. Bf5 {[%clk 0:00:02]}  Ke3 {[%clk 0:01:14]} 53. Kb3 {[%clk 0:00:03]}  Be1 {[%clk 0:01:14]} 54. Ka4 {[%clk 0:00:03]}  Bb4 {[%clk 0:01:15]} 55. Bd7 {[%clk 0:00:03]}  Kd4 {[%clk 0:01:16]} 56. Bf5 {[%clk 0:00:04]}  Kc3 {[%clk 0:01:17]} 57. Bc8 {[%clk 0:00:04]}  Kd4 {[%clk 0:01:17]} 58. Bf5 {[%clk 0:00:05]}  Ke5 {[%clk 0:01:18]} 59. Bc8 {[%clk 0:00:06]}  Kd6 {[%clk 0:01:19]} 60. Bf5 {[%clk 0:00:06]}  Kc7 {[%clk 0:01:20]} 61. Bc2 {[%clk 0:00:07]}  Kd6 {[%clk 0:01:21]} 62. Bf5 {[%clk 0:00:08]}  Ke7 {[%clk 0:01:21]} 63. Bb1 {[%clk 0:00:08]}  Kf6 {[%clk 0:01:22]} 64. Bf5 {[%clk 0:00:09]}  Ke5 {[%clk 0:01:23]} 65. Bb1 {[%clk 0:00:09]}  Kd4 {[%clk 0:01:24]} 66. Bf5 {[%clk 0:00:10]} 1/2-1/2


[Site "https://www.chess.com"]

[Event "Titled Tuesday Blitz January 10 Early 2023"]
[White "ritanovikova"]
[Black "Zanette, Edgard Vinicius"]
[BlackFideId "2109263"]
[WhiteElo "2112"]
[BlackElo "2085"]
[Result "1-0"]
[Round "06"]
[TimeControl "180+2"]
[Date "2023.01.10"]
[WhiteClock "0:00:22"]
[BlackClock "0:00:01"]

1. d4 {[%clk 0:03:00]}  Nf6 {[%clk 0:02:59]} 2. Bf4 {[%clk 0:02:59]}  e6 {[%clk 0:02:59]} 3. Nd2 {[%clk 0:02:59]}  d5 {[%clk 0:02:56]} 4. e3 {[%clk 0:02:58]}  Bd6 {[%clk 0:02:55]} 5. Bg3 {[%clk 0:02:58]}  O-O {[%clk 0:02:52]} 6. Ngf3 {[%clk 0:02:57]}  c5 {[%clk 0:02:52]} 7. c3 {[%clk 0:02:57]}  Qc7 {[%clk 0:02:51]} 8. Ne5 {[%clk 0:02:54]}  Nbd7 {[%clk 0:02:50]} 9. Ndf3 {[%clk 0:02:54]}  Ne4 {[%clk 0:02:49]} 10. Nxd7 {[%clk 0:02:44]}  Bxd7 {[%clk 0:02:48]} 11. Bxd6 {[%clk 0:02:42]}  Qxd6 {[%clk 0:02:48]} 12. Ne5 {[%clk 0:02:42]}  cxd4 {[%clk 0:02:43]} 13. exd4 {[%clk 0:02:39]}  f6 {[%clk 0:02:34]} 14. Nxd7 {[%clk 0:02:33]}  Qxd7 {[%clk 0:02:34]} 15. Bd3 {[%clk 0:02:34]}  f5 {[%clk 0:02:00]} 16. f3 {[%clk 0:02:30]}  Nd6 {[%clk 0:01:56]} 17. O-O {[%clk 0:02:29]}  b5 {[%clk 0:01:43]} 18. a3 {[%clk 0:02:28]}  Nc4 {[%clk 0:01:40]} 19. Qe2 {[%clk 0:02:26]}  a6 {[%clk 0:01:37]} 20. Rfe1 {[%clk 0:02:25]}  Rae8 {[%clk 0:01:37]} 21. b3 {[%clk 0:02:19]}  Nd6 {[%clk 0:01:36]} 22. a4 {[%clk 0:02:07]}  Qc6 {[%clk 0:01:24]} 23. Rec1 {[%clk 0:01:55]}  Rf7 {[%clk 0:01:20]} 24. axb5 {[%clk 0:01:54]}  axb5 {[%clk 0:01:19]} 25. Ra5 {[%clk 0:01:46]}  Rb7 {[%clk 0:01:11]} 26. Qa2 {[%clk 0:01:39]}  b4 {[%clk 0:00:58]} 27. Ra6 {[%clk 0:01:34]}  Rb6 {[%clk 0:00:58]} 28. Ra5 {[%clk 0:01:04]}  bxc3 {[%clk 0:00:54]} 29. Rc5 {[%clk 0:01:03]}  Qb7 {[%clk 0:00:54]} 30. R1xc3 {[%clk 0:01:02]}  Ra8 {[%clk 0:00:51]} 31. Qe2 {[%clk 0:00:57]}  Ra1+ {[%clk 0:00:48]} 32. Kf2 {[%clk 0:00:57]}  Qe7 {[%clk 0:00:36]} 33. g3 {[%clk 0:00:50]}  Rb7 {[%clk 0:00:26]} 34. Qb2 {[%clk 0:00:38]}  Rba7 {[%clk 0:00:25]} 35. Qe2 {[%clk 0:00:35]}  f4 {[%clk 0:00:24]} 36. b4 {[%clk 0:00:32]}  fxg3+ {[%clk 0:00:23]} 37. hxg3 {[%clk 0:00:33]}  h5 {[%clk 0:00:23]} 38. Qe5 {[%clk 0:00:30]}  h4 {[%clk 0:00:20]} 39. Qh5 {[%clk 0:00:28]}  hxg3+ {[%clk 0:00:19]} 40. Kg2 {[%clk 0:00:27]}  R7a2+ {[%clk 0:00:17]} 41. Rc2 {[%clk 0:00:27]}  Rxc2+ {[%clk 0:00:08]} 42. Rxc2 {[%clk 0:00:24]}  Nf5 {[%clk 0:00:02]} 43. Bxf5 {[%clk 0:00:21]}  exf5 {[%clk 0:00:02]} 44. Qxf5 {[%clk 0:00:21]}  Qe1 {[%clk 0:00:01]} 45. Qxd5+ {[%clk 0:00:21]}  Kh7 {[%clk 0:00:01]} 46. Qh5+ {[%clk 0:00:21]}  Kg8 {[%clk 0:00:01]} 47. Rc8+ {[%clk 0:00:22]} 1-0


[Site "https://www.chess.com"]